Cogmind - Beta 16.1 @@@ ROGUE MODE // 2026.04.09 @ 21:26:57 Player: Ace Result: Destroyed by 8R-AWN with 8R-AWN's Boregun Performance ------------- Evolutions (0) 0 Regions Visited (3) 600 Robots Destroyed (27) 135 Value Destroyed (424) 424 Prototype IDs (3) 60 Alien Tech Used (0) 0 Bonus (0) 0 TOTAL SCORE: 1219 Bonus ------- None Cogmind --------- Core Integrity 0/250 Matter 298/300 Energy 125/125 System Corruption 0% Temperature Cool (0) Movement Rolling (95) Ox1 Location -10/Exiles Parts ------- > --- POWER (1) -------- Light Ion Engine > --- PROPULSION (2) --- Wheel > --- UTILITY (2) ------ Medium Storage Unit > --- WEAPON (2) ------- Katana > --- INVENTORY (10) --- Visual Processing Unit Improved Sensor Array Experimental Sensor Array Seismic Detector Hacking Suite System Shield Shock Rifle Datajack Peak State ------------ > --- POWER ------------ Nuclear Core > --- PROPULSION ------- Wheel > --- UTILITY ---------- Medium Storage Unit Improved Light Armor Plating > --- WEAPON ----------- Assault Rifle Katana > --- INVENTORY -------- Light Ion Engine Visual Processing Unit Improved Sensor Array Experimental Sensor Array Seismic Detector Hacking Suite System Shield Shock Rifle Datajack [Rating: 14] Favorites ----------- Power Light Ion Engine Engine Light Ion Engine Power Core Nuclear Core Propulsion Wheel Treads Light Treads Wheel Wheel Hover Unit Hover Unit Utility Medium Storage Unit Device Seismic Detector Storage Medium Storage Unit Processor Signal Interpreter Protection Improved Light Armor Plating Weapon Assault Rifle Energy Gun Shock Rifle Ballistic Gun Assault Rifle Special Weapon Mining Laser Impact Weapon Hammer Slashing Weapon Katana Piercing Weapon Makeshift Spear Special Melee Weapon Datajack Build | -11 -10 -10 -10 ------- Run | Yrd Mat Min Exi Slots Evolved . | . . . . Power . | . . . . Propulsion . | . . . . Utility . | . . . . Weapon . | . . . . Parts Attached 28 | 11 11 4 2 Power 5 | 2 2 1 . Engine 4 | 2 2 . . Core 1 | . . 1 . Reactor . | . . . . Propulsion 9 | 4 4 1 . Treads 2 | 2 . . . Leg . | . . . . Wheel 6 | 2 3 1 . Hover 1 | . 1 . . Flight . | . . . . Utility 6 | 2 3 . 1 Device 1 | 1 . . . Storage 3 | 1 2 . . Processor 1 | . 1 . . Hackware . | . . . . Protection 1 | . . . 1 Artifact . | . . . . Weapon 8 | 3 2 2 1 Energy Gun 1 | . . . 1 Energy Cannon . | . . . . Ballistic Gun 2 | 2 . . . Ballistic Cannon . | . . . . Launcher . | . . . . Special Weapon 1 | 1 . . . Impact Weapon 1 | . 1 . . Slashing Weapon 1 | . . 1 . Piercing Weapon 1 | . . 1 . Special Melee Weapon 1 | . 1 . . Unidentified Prototypes . | . . . . Parts Lost 7 | . 3 . 4 Power 3 | . 2 . 1 Propulsion 2 | . 1 . 1 Utility 1 | . . . 1 Weapon 1 | . . . 1 Highest Loss Streak 4 | . 2 . 4 To Critical Strikes . | . . . . Average Backups 8 | 1 7 9 9 Power . | . . 1 . Propulsion . | . 1 . . Utility 4 | . 3 5 6 Weapon 1 | . 1 1 1 Tool/Special . | . . . . Unused Backups 12 | . 3 4 5 Power 2 | . 1 1 . Propulsion 1 | . . 1 . Utility 8 | . 2 1 5 Weapon 1 | . . 1 . Tool/Special . | . . . . Average Slot Usage (%) 98 | . 98 100 95 Engine 10 | . 13 12 1 Core 3 | . . 1 12 Wheel 27 | . 27 28 25 Device 3 | . 7 . . Storage 14 | . 14 14 14 Processor 10 | . 6 14 11 Ballistic Gun 16 | . 19 14 13 Impact Weapon 8 | . 7 12 . Slashing Weapon 2 | . . 1 9 Peak Build Rating 14 | 7 8 13 14 Average Rating 8 | 5 7 8 12 On Entrance 7 | . 7 8 13 Avg Prop Armor Cover (%) . | . . . . Naked Turns . | . . . . Heaviest Build 24 | 14 18 21 24 Greatest Support 40 | 40 20 20 20 Greatest Overweight (x) 4 | 1 4 1 2 Average Overweight (x) . | . . . . Largest Inventory Capacity 10 | 8 10 10 10 Average Capacity 9 | 7 9 10 10 Most Carried 10 | 6 9 10 10 Average Carried 8 | 1 7 9 9 Final Capacity 10 | 8 10 10 10 Final Carried 10 | 5 9 10 8 Class Distribution -------------------- 100% | Mutant Dominant Class ---------------- Mutant | -10/Materials Mutant | -10/Mines Mutant | -10/Exiles Resources | -11 -10 -10 -10 ----------- Run | Yrd Mat Min Exi Matter Collected 903 | 160 529 50 164 Remotely . | . . . . Salvage Created 905 | 127 597 152 29 Parts 42 | 9 30 3 . Haulers Intercepted 1 | . 1 . . Recyclers Shooed . | . . . . Parts Field Recycled . | . . . . Retrieved Matter . | . . . . Parts Self-Destructed . | . . . . Prevented . | . . . . Parts Restored . | . . . . Kills | -11 -10 -10 -10 ------- Run | Yrd Mat Min Exi Combat Hostiles Destroyed 13 | . 11 . 2 Melee 8 | . 6 . 2 Guns 3 | . 3 . . Classes Destroyed 9 | 2 5 1 1 Worker 3 | . . 3 . Builder 3 | . 1 2 . Tunneler 5 | 2 . 3 . Hauler 1 | . 1 . . Recycler 2 | 1 1 . . Watcher 2 | . 2 . . Swarmer 3 | . 3 . . Grunt 8 | . 8 . . Assembled 2 | . . . 2 Best Kill Streak 3 | 2 3 2 2 Combat Bots Only 3 | . 3 . 2 Max Kills in Single Turn 1 | 1 1 1 1 Gunslinging . | . . . . Exploded . | . . . . Melee 1 | . 1 . 1 Uniques/NPCs Destroyed . | . . . . Combat | -11 -10 -10 -10 -------- Run | Yrd Mat Min Exi Hostile Shots Fired 125 | . 75 . 50 Missed 41 | . 20 . 21 Hits 84 | . 55 . 29 Melee 11 | . . . 11 Projectile 73 | . 55 . 18 Critical Strikes 7 | . . . 7 Damage Taken 1223 | . 547 . 676 Core 260 | . 97 . 163 Absorbed by Shields . | . . . . Regen/Repaired (Parts) 98 | . 98 . . Core Remaining (%) 100 | 100 . . . Volleys Fired 66 | 8 26 . 32 Largest 2 | 2 2 . 2 Hottest 100 | 100 40 . 70 Shots Fired 110 | 13 52 . 45 Gun 107 | 10 52 . 45 Cannon . | . . . . Launcher . | . . . . Special 3 | 3 . . . Kinetic 94 | 10 52 . 32 Thermal 3 | 3 . . . Explosive . | . . . . Electromagnetic 13 | . . . 13 Robot Hit Streak 9 | 7 9 . . Robot Miss Streak 2 | 1 2 . . Penetration Max . | . . . . Secondary Targets . | . . . . Shots Hit Robots 84 | 7 61 11 5 Core Hits 24 | 3 17 2 2 Critical Kills 2 | . 1 1 . Critical Parts Destroyed 4 | . 2 2 . Critical Strikes 6 | . 3 3 . Smash 6 | . 3 3 . Melee Attacks 84 | . 51 12 21 Impact 53 | . 41 12 . Slashing 19 | . . . 19 Piercing . | . . . . Sneak Attacks 22 | . 11 10 1 Combat Hostiles . | . . . . Follow-up Attacks . | . . . . Damage Inflicted 1686 | 88 990 486 122 Guns 499 | 88 411 . . Cannons . | . . . . Explosions . | . . . . Melee 1182 | . 574 486 122 Ramming 5 | . 5 . . Kinetic 499 | 88 411 . . Thermal . | . . . . Explosive . | . . . . Electromagnetic . | . . . . Impact 1060 | . 574 486 . Slashing 122 | . . . 122 Piercing . | . . . . Highest Corruption . | . . . . Average Corruption . | . . . . Corruption Purged . | . . . . Corruption Blocked . | . . . . Overload Shots . | . . . . Overflow Damage 247 | . 91 150 6 Projectiles . | . . . . Explosions . | . . . . Melee 247 | . 91 150 6 Knockbacks 8 | . 2 6 . Impact 8 | . 2 6 . Kinetic . | . . . . Secondary . | . . . . Self-Inflicted Damage 2 | . 2 . . Shots . | . . . . Rammed 1 | . 1 . . Targets Rammed 1 | . 1 . . Kicked . | . . . . Crushed . | . . . . Highest Temperature 195 | 60 . . 195 Average Temperature 83 | 30 . . 99 Received Heat Transfer 174 | . 174 . . Siege Activations . | . . . . Martial Activations . | . . . . Shielding Activations . | . . . . Robots Disrupted . | . . . . Combat Hostiles . | . . . . Robots Corrupted 8 | . 2 6 . Combat Hostiles 2 | . 2 . . Parts Fried 15 | . 4 11 . Impact Corruptions 16 | . 5 11 . Robots Melted . | . . . . Combat Hostiles . | . . . . Parts Melted . | . . . . Heat Transferred . | . . . . Parts Sabotaged . | . . . . Parts Stolen . | . . . . Parts Stripped . | . . . . Power Chain Reactions . | . . . . Alert | -11 -10 -10 -10 ------- Run | Yrd Mat Min Exi Maximum Alert Level . | . . . . Low Security (%) 100 | 100 100 100 . Level 1 . | . . . . Level 2 . | . . . . Level 3 . | . . . . Level 4 . | . . . . Level 5 . | . . . . High Security . | . . . . Max Security . | . . . . Peak Influence 70 | 5 70 5 . Initial . | . . . . Average 8 | . 16 . . Influence Increases 387 | 15 332 40 . Destroy 0b10 Robot/C 220 | . 220 . . Destroy 0b10 Robot/NC 80 | 15 25 40 . Destroy Leader 46 | . 46 . . Successful Hack 20 | . 20 . . Disable Machine 15 | . 15 . . Destroy Structure 6 | . 6 . . Influence Decreases 387 | 15 332 40 . Time Decay 314 | 15 259 40 . Lost Part 28 | . 28 . . Purge Threat 45 | . 45 . . Squads Dispatched 4 | . 3 1 . Investigation 4 | . 3 1 . Extermination . | . . . . Reinforcement . | . . . . Assault . | . . . . Garrison . | . . . . Intercept . | . . . . Searches Triggered . | . . . . Construction Impeded . | . . . . Haulers Reinforced . | . . . . Active Scanning Responses . | . . . . Cargo Convoy Interrupts . | . . . . Stealth | -11 -10 -10 -10 --------- Run | Yrd Mat Min Exi Distress Signals 1 | . 1 . . Communications Jammed . | . . . . Distress Signals . | . . . . Times Spotted 22 | . 14 . 8 Peak Tracking Total 11 | . 3 . 11 Tactical Retreats 1 | . . . 1 Traps | -11 -10 -10 -10 ------- Run | Yrd Mat Min Exi Traps Triggered 1 | . 1 . . Indirectly . | . . . . Trap Hack Attempts . | . . . . Triggered . | . . . . Disarmed . | . . . . Reprogrammed . | . . . . Reused . | . . . . Traps Extracted . | . . . . Installed . | . . . . Triggered . | . . . . Machines | -11 -10 -10 -10 ---------- Run | Yrd Mat Min Exi Machines Disabled 4 | . 1 . 3 Max in Single Turn 1 | . 1 . 1 Machines Repaired . | . . . . Machines Dismantled . | . . . . Machines Sabotaged . | . . . . Overloaded Fab Kills . | . . . . Hacking | -11 -10 -10 -10 --------- Run | Yrd Mat Min Exi Machines Accessed 15 | . 11 2 2 Terminals 9 | . 8 1 . Fabricators . | . . . . Repair Stations 1 | . 1 . . Recycling Units 2 | . 2 . . Scanalyzers . | . . . . Garrison Access . | . . . . Total Hacks 73 | . 39 2 32 Successful 54 | . 21 1 32 Failed 19 | . 18 1 . Catastrophic 4 | . 3 1 . Database Lockouts . | . . . . Manual 22 | . 19 1 2 Terminals 31 | . 30 1 . Fabricators . | . . . . Repair Stations 4 | . 4 . . Recycling Units 5 | . 5 . . Scanalyzers . | . . . . Garrison Access . | . . . . Terminal Hacks 46 | . 13 1 32 Record 32 | . . . 32 Robot Analysis 2 | . 2 . . Prototype ID Bank 2 | . 2 . . Open Door 1 | . . 1 . Terminal Index 1 | . 1 . . Alert Level 3 | . 3 . . Unreport Threat 2 | . 2 . . Locate Traps 1 | . 1 . . Registered Components 1 | . 1 . . Zone Layout 1 | . 1 . . Fabricator Hacks . | . . . . Repair Station Hacks 3 | . 3 . . Scan Component 2 | . 2 . . Repair 1 | . 1 . . Recycling Unit Hacks 5 | . 5 . . Report Inventory 3 | . 3 . . Retrieve Components 2 | . 2 . . Scanalyzer . | . . . . Garrison Access Hacks . | . . . . Unauthorized Hacks . | . . . . Terminals . | . . . . Fabricators . | . . . . Repair Stations . | . . . . Recycling Units . | . . . . Scanalyzers . | . . . . Garrison Access . | . . . . Data Cores Recovered 1 | . 1 . . Used . | . . . . Hacking Detections 12 | . 11 1 . Full Trace Events 2 | . 2 . . Feedback Events . | . . . . Feedback Blocked . | . . . . Robot Schematics Acquired . | . . . . Robots Built . | . . . . Authchips . | . . . . Time . | . . . . Total Robot Build Rating . | . . . . Part Schematics Acquired . | . . . . Parts Built . | . . . . Authchips . | . . . . Time . | . . . . Total Part Build Rating . | . . . . Part Studies Acquired . | . . . . Parts Repaired 1 | . 1 . . Time 26 | . 26 . . Parts Recycled . | . . . . Recycled Matter . | . . . . Retrieved Matter . | . . . . Retrieved Components 19 | . 19 . . Parts Scanalyzed . | . . . . Part Schematics Acquired . | . . . . Parts Damaged . | . . . . Bothacking | -11 -10 -10 -10 ------------ Run | Yrd Mat Min Exi Used RIF Installer . | . . . . Robots Hacked 3 | . 3 . . Non-combat 3 | . 3 . . Combat . | . . . . Robot Hacks Applied 5 | . 5 . . parse_system 3 | . 3 . . no_distress 2 | . 2 . . Relay Couplers Released . | . . . . Fabnet Peak Effective % . | . . . . Robots Rewired . | . . . . Allies Hacked . | . . . . Hacks Repelled . | . . . . Allies | -11 -10 -10 -10 -------- Run | Yrd Mat Min Exi Total Allies . | . . . . Largest Group . | . . . . Highest-Rated Group . | . . . . Highest-Rated Ally . | . . . . Total Orders . | . . . . Ally Attacks . | . . . . Total Damage . | . . . . Kills . | . . . . Allies Corrupted . | . . . . Allies Melted . | . . . . Intel | -11 -10 -10 -10 ------- Run | Yrd Mat Min Exi Active Infowar (turns) 664 | 53 611 . . Seismic 664 | 53 611 . . Robot Analysis Total 2 | . 2 . . Derelict Logs Recovered 1 | . . 1 . Drone Launches . | . . . . Drone Recoveries . | . . . . Exploration | -11 -10 -10 -10 ------------- Run | Yrd Mat Min Exi Turns Passed 2770 | 140 1107 1029 494 Spaces Moved 2342 | 68 957 926 391 Core 6 | 5 1 . . Treads 45 | 45 . . . Legs . | . . . . Wheels 2291 | 18 956 926 391 Hover . | . . . . Flight . | . . . . Fastest Speed 50 | 50 80 80 80 Average Speed 84 | 131 80 82 89 Slowest Speed 250 | 160 250 95 110 Overloaded Moves . | . . . . Propulsion Burnouts . | . . . . Robots Hopped . | . . . . Potential Cave-ins 8 | . . . 8 Cave-ins Triggered . | . . . . Exploration Rate (%) 69 | 4 97 99 79 Regions Visited 3 Branch Regions 2 Pre-discovered Areas 3 | . . 2 1 Known Exits Taken 2 | . 1 1 . Unknown Exits Taken 1 | 1 . . . Scrap Searched 3 | . . 3 . Spaces Dug 21 | 3 6 . 12 Terrain Destroyed 21 | 3 6 . 12 Melee 18 | . 6 . 12 Projectile 3 | 3 . . . AOE . | . . . . Terrain Rammed . | . . . . Walls Destroyed . | . . . . Machines Disabled . | . . . . Actions | -11 -10 -10 -10 --------- Run | Yrd Mat Min Exi Total 2895 | 95 1167 1176 457 Wait 298 | . 81 217 . Move 2339 | 67 956 925 391 Hop . | . . . . Pick Up 31 | 5 18 7 1 Fast Attach 18 | 9 4 4 1 Attach 8 | 1 5 . 2 Detach 1 | 1 . . . Swap 20 | 2 11 1 6 Drop 28 | 2 14 10 2 Fire 66 | 8 26 . 32 Melee 84 | . 51 12 21 Ram 1 | . 1 . . Kick . | . . . . Crush . | . . . . Escape Stasis . | . . . . Rewire 1 | . . . 1 Trap . | . . . . Miscellaneous . | . . . . Route ------- -11/Scrapyard -10/Materials (discovered 6 exits: *Mat x3 / *Min x2 / *Sub) -10/Mines (discovered 4 exits: *Mat x2 / *Exi / *Sub) -10/Exiles (discovered 1 exit: *Min) History --------- Turn | Location | Event 3 | -11/Scrapyard | Discovered new exit (range 15) 141 | -11/Scrapyard | Entered Materials 211 | -10/Materials | Met 8R-AWN 255 | -10/Materials | Discovered new exit (range 10) 300 | -10/Materials | Build established: Mutant 308 | -10/Materials | Discovered new exit (range 8) 740 | -10/Materials | Discovered new exit (range 16) 765 | -10/Materials | Identified exit to Materials 776 | -10/Materials | Discovered new exit (range 15) 812 | -10/Materials | Identified exit to Mines 930 | -10/Materials | Repaired Assault Rifle 1076 | -10/Materials | Discovered new exit (range 5) 1078 | -10/Materials | Identified exit to Subcaves 1174 | -10/Materials | Discovered exit to Materials (range 4) 1248 | -10/Materials | Entered Mines 1249 | -10/Mines | Followed 8R-AWN into the Mines 1327 | -10/Mines | Discovered new exit (range 5) 1331 | -10/Mines | Identified exit to Exiles 1361 | -10/Mines | A weapon hastily lodged in a ceiling crevice suddenly fell to the ground 1395 | -10/Mines | Discovered exit to Materials (range 6) 1655 | -10/Mines | Discovered exit to Subcaves (range 6) 2051 | -10/Mines | Discovered exit to Materials (range 8) 2052 | -10/Mines | Learned location of Storage (-7) 2052 | -10/Mines | Learned location of Zion (-6) 2119 | -10/Mines | Found a damaged Exp. Sensor Array with a note attached 2121 | -10/Mines | Found Prototype Device 2138 | -10/Mines | Met a Derelict shopkeep closing up shop 2277 | -10/Mines | Entered Exiles 2412 | -10/Exiles | Discovered new exit (range 14) 2422 | -10/Exiles | Identified exit to Mines 2443 | -10/Exiles | Welcomed by 8R-AWN 2458 | -10/Exiles | Met EX-HEX 2537 | -10/Exiles | Met EX-DEC 2553 | -10/Exiles | Visited The Gauntlet 2659 | -10/Exiles | Attacked by the Exiles 2698 | -10/Exiles | Core integrity fell below 50% 2730 | -10/Exiles | Core integrity fell below 20% 2771 | -10/Exiles | Destroyed by 8R-AWN with 8R-AWN's Boregun Last Messages --------------- 02720_ Penetrated by HV Slug. 02724_ HV Slug penetrates as-84842. 02724_ as-84842 suffers critical hit (Destroy). 02724_ HV Slug penetrates as-20934. 02724_ as-20934 suffers critical hit (Destroy). 02725_ Imp. Light Armor Plating destroyed. 02726_ Penetrated by HV Slug. 02726_ Nuclear Core destroyed. 02729_ Penetrated by HV Slug. 02738_ Knocked back. 02739_ Connecting with EX-Vault Access... 02748_ as-19847 destroyed. 02751_ as-54773 destroyed. 02753_ Acquired 18 matter. 02755_ Penetrated by HV Slug. 02755_ Assault Rifle destroyed. 02755_ HV Slug penetrates Wall. 02771_ Penetrated by HV Slug. 02771_ HV Slug penetrates Earth. 02771_ Penetrated by HV Slug. Map ----- +----------------------------------------------------+ | | | | | | | | | | | | | | | | | | | | | | | | | | | | | | | | | ?????????????????????????????????????????????????? | | ?????????????????????????????????????????????????? | | ?????????????????????????????????????????????????? | | ?????????????????????????????????????????????????? | | ?????????????????????????????????????????????????? | | ????????????????????????????########?????????????? | | ????????????????????????????#X #?????????????? | | ???????????????????????##??##"% #?????????????? | | ???????????????????????# ### # #?????????????? | | ????????????????????????#@# #" #???###???????? | | ????????????????????????##g### #??"""""#?????? | | ?????????????????????????# #?# ## """#?????? | | ?????????????????????????###?# X""#?????? | | ?????????????????????????????# ## """#?????? | | ????????????????????????###??# #??"""""#?????? | | ???????????????????????"""""?# #???####??????? | | ???????????????????????""" ## #?????????????? | | ?????????????????????#""X" #?????????????? | | ?????????????????????#" #?????????????? | | ?????????????????????#" ## #?????????????? | | ?????????????????????#""""""?# #?????????????? | | ???????????????????????"###??# #??""""""?????? | | ?????????????????????????????# #??""""""?????? | | ?????????????????????????????# #??"""""""????? | | ????????????????????????????## ###"" """"????? | | ????????????????????????????#" """"????? | | ????????????????????????????#" """#???? | | ????????????????????????????#" """#???? | | ????????????????????????????#" """#???? | | ?????????????########???????#" """#???? | | ?????????????# """#???????#" """#???? | | ?????????????#"" """#???????## """""??? | | ?????????????#"" #????????# """#???? | | ?????????????#"" ##???????#" "X" """""??? | +----------------------------------------------------+ Best States ------------- Heat Dissipation 25 Energy Generation 14 Energy Capacity 250 Matter Stores 300 Matter Capacity 300 Sight Range 16 Terrain Scan Density 10 Armor Coverage 150 Evasion (%) 44 Recoil Reduction 2 Item Schematics ----------------- None Robot Schematics ------------------ None Fabricated ------------ Nothing Repaired ---------- Assault Rifle | 2% | -10/Materials Studied --------- None Alien Tech Used ----------------- None Achievements -------------- Follow The Leader Part-time Excavator root@ Challenges ------------ None Game ------ Seed GravityDispersalTreads Manual? 0 Play Time 01:20:27 Cumulative 13.1 hours Start 2026.04.09 @ 19:24:22 End 2026.04.09 @ 21:26:57 Sessions 1 Manual Loads 0 Difficulty Rogue Special Mode None Game No. 8 Rogue 4 Adventurer 4 Explorer 0 Win Type - Total 0 Types 0/0/0/0/0/0/0/0/0/0 Lore% 8 Gallery% 11 Achievement% 10 Wizard Run 0 Options --------- Layout 1 ASCII 0 Keyboard 0 Movement Mouse Keybinds 0 Fullscreen 2 Font 24/Smallcaps Map View 50x35 Zoom Use 0% Tactical HUD 1 Map Filters NONE Filters NONE Steam 1 RUN: e4836f2c-df39-4560-aaf2-0212a71c5e25